Workbook

Sheet 1
A1: Школа | B1: МБОУ "СОШ №1" | E1: Отд./корп | I1: День | J1: VII
A3: Прием пищи | B3: Раздел | C3: № рец. | D3: Блюдо | E3: Выход, г | F3: Цена | G3: Калорийность | H3: Белки | I3: Жиры | J3: Углеводы
A4: Завтрак | B4: закуска | C4: ='[1] 7-10'!A103 -> №Т/К 41 | D4: ='[1] 7-10'!B103 -> Салат из моркови с сахаром и растительным маслом | E4: 60 | F4: 5.94 | G4: ='[1] 7-10'!$G$103 -> 74.3 | H4: ='[1] 7-10'!D103 -> 0.50 | I4: ='[1] 7-10'!E103 -> 6.10 | J4: ='[1] 7-10'!F103 -> 4.3
B5: гор.блюдо | C5: ='[1] 7-10'!A104 -> 62 | D5: ='[1] 7-10'!B104 -> Борщ | E5: 200 | F5: 27.56 | G5: ='[1] 7-10'!$G$104 -> 166.0 | H5: ='[1] 7-10'!D104 -> 10.77 | I5: ='[1] 7-10'!E104 -> 6.46 | J5: ='[1] 7-10'!F104 -> 19.1
B6: гор.напиток | C6: Т/к №430 | D6: Чай с сахаром и яблоком | E6: 217 | F6: 7.35 | G6: 34.1 | H6: 0.20 | I6: 0.00 | J6: 8.2
B7: гор.блюдо | C7: =[2]Лист1!$K$301 -> т/к №410 | D7: =[2]Лист1!E301 -> Выпечка (треугольник/курник) п/ф | E7: =[2]Лист1!F301 -> 70 | F7: 35.17 | G7: =[2]Лист1!$J$301 -> 221.7 | H7: =[2]Лист1!G301 -> 5.70 | I7: =[2]Лист1!H301 -> 5.00 | J7: =[2]Лист1!I301 -> 29.8
B8: хлеб | C8: пром | D8: Хлеб ржаной | E8: 20 | F8: 1.74 | G8: 34.2 | H8: 1.30 | I8: 0.20 | J8: 6.7
A9: Завтрак 2 | B9: фрукты
A12: Обед | B12: закуска
B13: 1 блюдо
B14: 2 блюдо
B15: гарнир
B16: сладкое
B17: хлеб бел.
B18: хлеб черн.
E20: =SUM(E4:E19) -> 567.00 | F20: =SUM(F4:F19) -> 77.76 | G20: 530.30 | H20: 18.47 | I20: 17.76 | J20: 68.10
